fUSD/lending_fUSD_20241223
["ID","MTS","AMOUNT","RATE_DAILY","PERIOD"]
[346431609,1734973850711,-500.0,0.00018414,2]
[346431610,1734973850721,-500.0,0.00018414,2]
[346431611,1734973850730,-1336.2,0.00018414,2]
[346431612,1734973850740,-500.0,0.00018414,2]
[346431613,1734973850750,-500.0,0.00018414,2]
[346431614,1734973850759,-500.0,0.00018414,2]
[346431615,1734973850767,-150.0,0.00018414,2]
[346431616,1734973850777,-5000.0,0.00018414,2]
[346431617,1734973850786,-1475.93,0.00018414,2]
[346431618,1734973850795,-5587.11781163,0.00018414,2]
[346431619,1734973850809,-4675.0,0.00018414,2]
[346431620,1734973850821,-2000.0,0.00018414,2]
[346431622,1734974148000,4712.95,0.00012113,2]
[346431623,1734974148027,44630.64082194,0.00012113,2]
[346431624,1734974469902,-693.46,0.00014158,2]
[346431625,1734974469922,-372.6295,0.00014968,2]
[346431626,1734974469943,-214.72391749,0.00014968,2]
[346431627,1734974469967,-900.0,0.00015068,2]
[346431628,1734974469989,-555.6,0.00016025,2]
[346431629,1734974470010,-250.0,0.00016045,2]
[346431630,1734974470032,-2155.18,0.00016047,2]
[346431631,1734974470053,-974.63,0.00016047,2]
[346431632,1734974470075,-167.27,0.00016066,2]
[346431633,1734974470096,-200.0,0.00016089,2]
[346431634,1734974470117,-150.0,0.00016115,2]
[346431635,1734974470140,-500.0,0.00016164,2]
[346431636,1734974470161,-300.0,0.00016228,2]
[346431637,1734974470182,-6688.50658251,0.00016229,2]
[346431638,1734974475174,-10000.0,0.00016229,2]
[346431639,1734974476071,-7211.49341749,0.00016229,2]
[346431640,1734974476092,-1500.0,0.00016248,2]
[346431641,1734974476113,-214.72391748,0.00016415,2]
[346431642,1734974476141,-693.46,0.00016422,2]
[346431643,1734974476163,-380.32266503,0.00016438,2]
[346431644,1734974476341,-519.67733497,0.00016438,2]
[346431645,1734974476364,-171.301,0.00016515,2]
[346431646,1734974476387,-185.71,0.00016595,2]
[346431647,1734974476410,-9123.31166503,0.00016866,2]
[346431648,1734974476586,-10000.0,0.00016866,2]
[346431649,1734974476665,-10000.0,0.00016866,2]
[346431650,1734974477089,-10000.0,0.00016866,2]
[346431651,1734974477457,-10000.0,0.00016866,2]
[346431653,1734974644295,174.45,0.00013699,2]
[346431688,1734975031584,-372.6295,0.00014058,2]
[346431689,1734975031594,-900.0,0.00015068,2]
[346431690,1734975031603,-250.0,0.00015898,2]
[346431691,1734975031612,-2751.0,0.00015942,2]
[346431692,1734975031622,-300.0,0.00015956,2]
[346431693,1734975031631,-113.97640084,0.00015992,2]
[346431694,1734975031738,-1414.66359916,0.00015992,2]
[346431695,1734975031747,-915.45462686,0.00016005,2]
[346431696,1734975031757,-300.0,0.00016005,2]
[346431697,1734975031766,-3110.29810107,0.00016006,2]
[346431698,1734975031855,-276.6034589,0.00016006,2]
[346431699,1734975031866,-1428.30294052,0.00016006,2]
[346431700,1734975031878,-946.363912,0.00016006,2]
[346431701,1734975031890,-7148.82482686,0.00016006,2]
[346431714,1734975037436,-7245.55690676,0.00016006,2]
[346431715,1734975037448,-2803.94910067,0.00016006,2]
[346431716,1734975037555,-2056.06913958,0.00016006,2]
[346431717,1734975037626,-37987.60161364,0.00016006,2]
[346431718,1734975037636,-930.1,0.0001602,2]
[346431719,1734975037645,-1376.52,0.00016025,2]
[346431720,1734975037654,-200.0,0.00016028,2]
[346431721,1734975037663,-29493.29,0.00016059,2]
[346431722,1734975037672,-200.0,0.00016097,2]
[346431723,1734975037681,-500.0,0.00016164,2]
[346431724,1734975037690,-502.38,0.00016169,2]
[346431725,1734975037699,-822.88,0.00016173,2]
[346431726,1734975037708,-164.46,0.00016187,2]
[346431727,1734975037717,-1000.0,0.0001619,2]
[346431728,1734975037726,-3168.78,0.00016323,2]
[346431729,1734975037735,-176.64,0.0001636,2]
[346431730,1734975037745,-171.301,0.00016378,2]
[346431732,1734975037754,-900.0,0.00016438,2]
[346431734,1734975037763,-2663.9112589,0.0001647,2]
[346431735,1734975037772,-150.0,0.0001657,2]
[346431737,1734975037783,-150.0,0.0001657,2]
[346431739,1734975037793,-150.0,0.0001657,2]
[346431742,1734975037803,-150.0,0.0001657,2]
[346431744,1734975037813,-150.0,0.00016602,2]
[346431746,1734975037823,-150.0,0.00016622,2]
[346431747,1734975037834,-150.0,0.00016633,2]
[346431749,1734975037843,-170.43,0.00016658,30]
[346431751,1734975037853,-150.0,0.00016665,2]
[346431753,1734975037862,-150.0,0.00016672,2]
[346431755,1734975037873,-150.0,0.00016675,2]
[346431757,1734975037882,-150.0,0.00016697,2]
[346431759,1734975037891,-150.0,0.00016728,2]
[346431762,1734975037901,-150.0,0.00016729,2]
[346431764,1734975037910,-150.0,0.0001676,2]
[346431766,1734975037920,-150.0,0.00016774,2]
[346431768,1734975037930,-150.0,0.0001678,2]
[346431770,1734975037940,-150.0,0.00016792,2]
[346431772,1734975037949,-2663.9112589,0.00016799,2]
[346431774,1734975037959,-377.2345,0.000168,2]
[346431776,1734975037968,-150.0,0.00016824,2]
[346431777,1734975037978,-150.0,0.00016833,2]
[346431779,1734975037987,-150.0,0.00016856,2]
[346431781,1734975037997,-800.0,0.00016877,2]
[346431783,1734975038006,-150.0,0.00016877,2]
[346431785,1734975038015,-150.0,0.00016885,2]
[346431787,1734975038025,-150.0,0.00016887,2]
[346431790,1734975038035,-150.0,0.00016919,2]
[346431792,1734975038044,-150.0,0.00016938,2]
[346431794,1734975038053,-150.0,0.00016951,2]
[346431795,1734975038063,-150.0,0.00016979,2]
[346431797,1734975038072,-150.0,0.00016983,2]
[346431800,1734975038085,-150.0,0.00016991,2]
[346431802,1734975038095,-300.0,0.00017,2]
[346431804,1734975038104,-468.6,0.00017,2]
[346431806,1734975038114,-468.6,0.00017005,2]
[346431808,1734975038123,-468.6,0.00017009,2]
[346431810,1734975038133,-468.6,0.00017013,2]
[346431811,1734975038143,-150.0,0.00017014,2]
[346431812,1734975038152,-468.6,0.00017018,2]
[346431813,1734975038162,-468.6,0.00017022,2]
[346431814,1734975038171,-468.6,0.00017027,2]
[346431816,1734975038180,-468.6,0.00017031,2]
[346431818,1734975038189,-468.6,0.00017036,2]
[346431819,1734975038199,-49123.0,0.00017037,2]
[346431820,1734975038208,-468.6,0.0001704,2]
[346431821,1734975038218,-150.0,0.00017043,2]
[346431822,1734975038227,-468.6,0.00017045,2]
[346431823,1734975038236,-150.0,0.00017046,2]
[346431824,1734975038245,-468.6,0.00017049,2]
[346431825,1734975038254,-468.6,0.00017054,2]
[346431826,1734975038263,-468.6,0.00017058,2]
[346431827,1734975038272,-468.6,0.00017063,2]
[346431828,1734975038281,-468.6,0.00017067,2]
[346431829,1734975038290,-468.6,0.00017072,2]
[346431830,1734975038300,-468.6,0.00017076,2]
[346431831,1734975038309,-827.65,0.00017077,2]
[346431832,1734975038318,-150.0,0.00017078,2]
[346431833,1734975038327,-468.6,0.0001708,2]
[346431834,1734975038338,-150.0,0.00017081,2]
[346431835,1734975038347,-468.6,0.00017085,2]
[346431836,1734975038357,-150.0,0.00017096,2]
[346431837,1734975038366,-150.0,0.00017109,2]
[346431838,1734975038375,-2663.9112589,0.00017127,2]
[346431839,1734975038385,-150.0,0.00017141,2]
[346431840,1734975038394,-250.0,0.00017144,2]
[346431841,1734975038404,-150.0,0.00017148,2]
[346431842,1734975038413,-150.0,0.00017173,2]
[346431843,1734975038422,-150.0,0.00017184,2]
[346431844,1734975038431,-150.0,0.00017201,2]
[346431845,1734975038440,-150.0,0.00017205,2]
[346431846,1734975038449,-1302.47,0.00017214,2]
[346431847,1734975038458,-150.0,0.00017236,2]
[346431848,1734975038467,-150.0,0.00017254,2]
[346431849,1734975038476,-150.0,0.00017268,2]
[346431850,1734975038485,-150.0,0.00017286,2]
[346431851,1734975038495,-150.0,0.000173,2]
[346431852,1734975038504,-150.0,0.00017306,2]
[346431853,1734975038514,-150.0,0.00017332,2]
[346431854,1734975038522,-28662.9302336,0.00017344,2]
[346431855,1734975038531,-2500.0,0.00017358,2]
[346431856,1734975038541,-150.0,0.00017359,2]
[346431857,1734975038550,-150.0,0.00017363,2]
[346431858,1734975038559,-150.0,0.00017388,2]
[346431859,1734975038568,-150.0,0.00017395,2]
[346431860,1734975038578,-150.0,0.00017412,2]
[346431861,1734975038588,-151.53550779,0.00017426,2]
[346431862,1734975038597,-150.0,0.00017427,2]
[346431863,1734975038606,-2663.9112589,0.00017456,2]
[346431864,1734975038615,-1880.05638058,0.00017458,2]
[346431865,1734975038624,-154.44471192,0.00017458,2]
[346431866,1734975038635,-344.94410683,0.00017458,2]
[346431867,1734975038644,-164.83792687,0.00017458,2]
[346431868,1734975038654,-1000.0,0.00017458,2]
[346431869,1734975038663,-5000.0,0.00017458,2]
[346431870,1734975038672,-5558.3653,0.00017458,2]
[346431871,1734975038682,-6593.106,0.00017458,2]
[346431872,1734975038691,-4601.1003,0.00017458,2]
[346431873,1734975038701,-150.0,0.00017459,2]
[346431874,1734975038710,-150.0,0.00017464,2]
[346431875,1734975038720,-344.94410681,0.00017479,2]
[346431876,1734975038730,-150.0,0.0001749,2]
[346431877,1734975038739,-150.0,0.0001749,2]
[346431878,1734975038749,-420.0,0.00017499,2]
[346431879,1734975038758,-591.409,0.000175,2]
[346431880,1734975038768,-344.94410681,0.000175,2]
[346431881,1734975038779,-150.0,0.00017517,2]
[346431882,1734975038791,-150.0,0.00017522,2]
[346431883,1734975038800,-151.0,0.00017526,2]
[346431884,1734975038809,-164.46,0.00017535,2]
[346431885,1734975038819,-2029.83,0.00017548,2]
[346431886,1734975038828,-784.08,0.00017548,2]
[346431887,1734975038837,-500.0,0.00017548,2]
[346431888,1734975038847,-500.0,0.00017548,2]
[346431889,1734975038857,-4539.23,0.00017548,2]
[346431890,1734975038867,-568.57,0.00017548,2]
[346431891,1734975038877,-500.0,0.00017548,2]
[346431892,1734975038886,-713.59,0.00017548,2]
[346431893,1734975038896,-500.0,0.00017548,2]
[346431894,1734975038906,-500.0,0.00017548,2]
[346431895,1734975038915,-1682.41,0.00017548,2]
[346431896,1734975038924,-150.0,0.00017554,2]
[346431897,1734975038933,-4965.89,0.00017557,2]
[346431898,1734975038943,-502.97732607,0.00017557,2]
[346431899,1734975038952,-4330.11,0.00017557,2]
[346431900,1734975038962,-3701.77,0.00017557,2]
[346431901,1734975038971,-1616.95,0.00017557,2]
[346431902,1734975038981,-7286.95,0.00017557,2]
[346431903,1734975038990,-8956.44,0.00017557,2]
[346431904,1734975038999,-824.08,0.00017557,2]
[346431905,1734975039009,-9372.51,0.00017557,2]
[346431906,1734975039018,-30141.27,0.00017557,2]
[346431907,1734975039027,-5768.39,0.00017557,2]
[346431908,1734975039036,-8768.28,0.00017557,2]
[346431909,1734975039045,-13554.13,0.00017557,2]
[346431910,1734975039055,-11556.38,0.00017557,2]
[346431911,1734975039064,-6307.38,0.00017557,2]
[346431912,1734975039073,-11920.59,0.00017557,2]
[346431913,1734975039084,-3804.8,0.00017557,2]
[346431914,1734975039093,-36949.45,0.00017557,2]
[346431915,1734975039103,-2095.25,0.00017557,2]
[346431916,1734975039113,-4736.63,0.00017557,2]
[346431917,1734975039122,-3127.79,0.00017557,2]
[346431918,1734975039132,-1617.4,0.00017558,2]
[346431919,1734975039141,-500.0,0.00017558,2]
[346431920,1734975039151,-500.0,0.00017558,2]
[346431921,1734975039160,-966.07,0.00017558,2]
[346431922,1734975039170,-1771.21,0.00017558,2]
[346431924,1734975039179,-677.59,0.00017558,2]
[346431925,1734975039188,-594.84,0.00017558,2]
[346431926,1734975039197,-500.0,0.00017558,2]
[346431927,1734975039206,-2996.02,0.00017558,2]
[346431928,1734975039216,-500.0,0.00017558,2]
[346431929,1734975039225,-154.072404,0.00017558,2]
[346431930,1734975039234,-155.940262,0.00017558,2]
[346431931,1734975039243,-3755.795061,0.00017558,2]
[346431932,1734975039252,-1035.57,0.00017558,2]
[346431933,1734975039262,-4389.613418,0.00017558,2]
[346431934,1734975039271,-500.0,0.00017558,2]
[346431935,1734975039286,-500.0,0.00017558,2]
[346431937,1734975039295,-500.0,0.00017558,2]
[346431938,1734975039305,-580.85,0.00017558,2]
[346431939,1734975039314,-576.7,0.00017558,2]
[346431940,1734975039323,-647.13,0.00017558,2]
[346431941,1734975039334,-500.0,0.00017558,2]
[346431942,1734975039344,-500.0,0.00017558,2]
[346431943,1734975039353,-1794.12,0.00017558,2]
[346431945,1734975039363,-3037.64,0.00017558,2]
[346431946,1734975039372,-874.62,0.00017558,2]
[346431947,1734975039381,-1539.34,0.00017558,2]
[346431948,1734975039390,-1615.62,0.00017558,2]
[346431949,1734975039400,-790.71,0.00017558,2]
[346431950,1734975039410,-1017.14,0.00017558,2]
[346431951,1734975039419,-14269.0,0.00017558,2]
[346431952,1734975039428,-500.0,0.00017558,2]
[346431953,1734975039438,-1666.85,0.00017558,2]
[346431954,1734975039447,-4687.6,0.00017558,2]
[346431955,1734975039456,-1821.66,0.00017558,2]
[346431956,1734975039465,-19255.98,0.00017558,2]
[346431957,1734975039475,-1711.58,0.00017558,2]
[346431958,1734975039484,-841.96,0.00017558,2]
[346431959,1734975039493,-4924.16,0.00017558,2]
[346431960,1734975039502,-2642.82,0.00017558,2]
[346431961,1734975039511,-8850.24,0.00017558,2]
[346431962,1734975039520,-1761.63,0.00017558,2]
[346431963,1734975039530,-9682.19,0.00017558,2]
[346431964,1734975039539,-1274.09,0.00017558,2]
[346431965,1734975039548,-32405.6,0.00017558,2]
[346431966,1734975039558,-3347.69,0.00017558,2]
[346431967,1734975039567,-5982.86,0.00017558,2]
[346431968,1734975039576,-1061.53,0.00017558,2]
[346431969,1734975039587,-3039.35,0.00017558,2]
[346431970,1734975039596,-3243.91,0.00017558,2]
[346431971,1734975039605,-777.48,0.00017558,2]
[346431972,1734975039615,-7478.95,0.00017558,2]
[346431973,1734975039624,-5958.09,0.00017558,2]
[346431974,1734975039633,-4571.85,0.00017558,2]
[346431975,1734975039642,-805.04,0.00017558,2]
[346431976,1734975039652,-7500.0,0.00017558,2]
[346431977,1734975039662,-7500.0,0.00017558,2]
[346431978,1734975039672,-10109.9,0.00017558,2]
[346431979,1734975039681,-744.4,0.00017558,2]
[346431980,1734975039691,-20167.63,0.00017558,2]
[346431981,1734975039700,-500.0,0.00017558,2]
[346431982,1734975039709,-694.87,0.00017558,2]
[346431983,1734975039719,-5645.61,0.00017558,2]
[346431984,1734975039730,-500.0,0.00017558,2]
[346431985,1734975039741,-500.0,0.00017558,2]
[346431986,1734975039751,-28014.01,0.00017558,2]
[346431987,1734975039760,-500.0,0.00017558,2]
[346431988,1734975039769,-4365.25,0.00017558,2]
[346431989,1734975039781,-769.33,0.00017558,2]
[346431990,1734975039792,-3171.39,0.00017558,2]
[346431991,1734975039801,-500.0,0.00017558,2]
[346431992,1734975039811,-3227.77,0.00017558,2]
[346431993,1734975039821,-1748.0,0.00017558,2]
[346431994,1734975039831,-5680.52,0.00017558,2]
[346431995,1734975039841,-5344.19,0.00017558,2]
[346431996,1734975039851,-4848.65,0.00017558,2]
[346431997,1734975039869,-5031.48,0.00017558,2]
[346431998,1734975039884,-1722.8,0.00017558,2]
[346431999,1734975039894,-7265.86,0.00017558,2]
[346432000,1734975039905,-500.0,0.00017558,2]
[346432001,1734975039914,-500.0,0.00017558,2]
[346432002,1734975039924,-7167.91,0.00017558,2]
[346432003,1734975039933,-1995.17,0.00017558,2]
[346432004,1734975039943,-5277.94,0.00017558,2]
[346432005,1734975039952,-2749.12,0.00017558,2]
[346432006,1734975039962,-10501.08,0.00017558,2]
[346432007,1734975039971,-6118.23,0.00017558,2]
[346432008,1734975039981,-500.0,0.00017558,2]
[346432009,1734975039991,-428515.4396,0.00017558,2]
[346432010,1734975040000,-16637.6458,0.00017558,2]
[346432011,1734975040010,-500.0,0.00017559,2]
[346432012,1734975040019,-525.49261178,0.00017559,2]
[346432013,1734975040028,-500.0,0.00017559,2]
[346432014,1734975040037,-500.0,0.00017559,2]
[346432015,1734975040046,-156.1234115,0.00017559,2]
[346432016,1734975040055,-500.0,0.00017559,2]
[346432017,1734975040064,-500.0,0.00017559,2]
[346432018,1734975040073,-288.84790612,0.00017559,2]
[346432019,1734975040083,-286.95379,0.00017559,2]
[346432020,1734975040093,-500.0,0.00017559,2]
[346432021,1734975040102,-500.0,0.00017559,2]
[346432022,1734975040112,-500.0,0.00017559,2]
[346432023,1734975040121,-500.0,0.00017559,2]
[346432024,1734975040130,-500.0,0.00017559,2]
[346432025,1734975040140,-500.0,0.00017559,2]
[346432026,1734975040149,-500.0,0.00017559,2]
[346432027,1734975040158,-500.0,0.00017559,2]
[346432028,1734975040167,-500.0,0.00017559,2]
[346432029,1734975040176,-500.0,0.00017559,2]
[346432030,1734975040185,-500.0,0.00017559,2]
[346432031,1734975040194,-500.0,0.00017559,2]
[346432032,1734975040203,-500.0,0.00017559,2]
[346432034,1734975040212,-500.0,0.00017559,2]
[346432036,1734975040221,-500.0,0.00017559,2]
[346432038,1734975040231,-500.0,0.00017559,2]
[346432040,1734975040240,-500.0,0.00017559,2]
[346432042,1734975040249,-500.0,0.00017559,2]
[346432044,1734975040258,-500.0,0.00017559,2]
[346432046,1734975040267,-500.0,0.00017559,2]
[346432048,1734975040276,-500.0,0.00017559,2]
[346432049,1734975040285,-500.0,0.00017559,2]
[346432051,1734975040294,-300.26589066,0.00017559,2]
[346432052,1734975040303,-500.0,0.00017559,2]
[346432053,1734975040312,-500.0,0.00017559,2]
[346432054,1734975040321,-500.0,0.00017559,2]
[346432055,1734975040330,-500.0,0.00017559,2]
[346432056,1734975040339,-500.0,0.00017559,2]
[346432057,1734975040348,-500.0,0.00017559,2]
[346432058,1734975040357,-500.0,0.00017559,2]
[346432059,1734975040366,-500.0,0.00017559,2]
[346432060,1734975040375,-500.0,0.00017559,2]
[346432061,1734975040384,-330.02658907,0.00017559,2]
[346432062,1734975040393,-154.44471191,0.00017562,2]
[346432063,1734975040402,-150.0,0.00017569,2]
[346432064,1734975040411,-150.0,0.00017586,2]
[346432065,1734975040419,-150.0,0.00017593,2]
[346432066,1734975040428,-1880.05638055,0.00017601,2]
[346432067,1734975040437,-150.0,0.00017617,2]
[346432068,1734975040446,-150.0,0.00017622,2]
[346432069,1734975040455,-574.11368252,0.00017648,2]
[346432070,1734975040464,-150.0,0.00017649,2]
[346432071,1734975040473,-150.0,0.00017651,2]
[346432072,1734975040482,-154.44471191,0.00017665,2]
[346432073,1734975040491,-150.0,0.00017675,2]
[346432074,1734975040500,-150.0,0.00017681,2]
[346432075,1734975040509,-150.0,0.00017695,2]
[346432076,1734975040518,-150.0,0.00017699,2]
[346432077,1734975040527,-150.0,0.000177,2]
[346432078,1734975040536,-1979.84403062,0.0001771,2]
[346432079,1734975040545,-1979.84403061,0.0001771,2]
[346432080,1734975040554,-176.64,0.00017711,2]
[346432081,1734975040563,-150.0,0.00017713,2]
[346432082,1734975040572,-150.0,0.00017714,2]
[346432083,1734975040581,-150.0,0.00017727,2]
[346432084,1734975040590,-150.0,0.00017741,2]
[346432085,1734975040599,-150.0,0.00017742,2]
[346432086,1734975040609,-1880.05638055,0.00017743,2]
[346432087,1734975040618,-150.0,0.00017744,2]
[346432088,1734975040627,-150.0,0.0001776,2]
[346432089,1734975040636,-150.0,0.00017769,2]
[346432090,1734975040645,-154.44471191,0.00017769,2]
[346432091,1734975040654,-150.0,0.00017776,2]
[346432092,1734975040663,-150.0,0.0001778,2]
[346432093,1734975040672,-150.0,0.0001778,2]
[346432094,1734975040681,-150.0,0.00017784,2]
[346432095,1734975040690,-2663.9112589,0.00017784,2]
[346432096,1734975040699,-193.54031053,0.00017792,2]
[346432097,1734975040708,-150.0,0.00017792,2]
[346432098,1734975040717,-150.0,0.00017797,2]
[346432099,1734975040726,-150.0,0.00017808,2]
[346432100,1734975040735,-150.0,0.00017808,2]
[346432101,1734975040744,-900.0,0.00017808,2]
[346432102,1734975040754,-150.0,0.00017821,2]
[346432103,1734975040763,-2029.83,0.00017822,2]
[346432104,1734975040773,-784.08,0.00017822,2]
[346432105,1734975040786,-500.0,0.00017822,2]
[346432106,1734975040795,-500.0,0.00017822,2]
[346432107,1734975040804,-4539.23,0.00017822,2]
[346432108,1734975040813,-568.57,0.00017822,2]
[346432109,1734975040824,-713.59,0.00017822,2]
[346432110,1734975040834,-500.0,0.00017822,2]
[346432111,1734975040843,-1682.41,0.00017822,2]
[346432112,1734975040853,-4965.89,0.00017831,2]
[346432113,1734975040863,-4330.11,0.00017831,2]
[346432114,1734975040872,-3701.77,0.00017831,2]
[346432115,1734975040881,-1616.95,0.00017831,2]
[346432116,1734975040890,-7286.95,0.00017831,2]
[346432117,1734975040900,-8956.44,0.00017831,2]
[346432118,1734975040910,-824.08,0.00017831,2]
[346432119,1734975040919,-9372.51,0.00017831,2]
[346432120,1734975040928,-30141.27,0.00017831,2]
[346432121,1734975040941,-5768.39,0.00017831,2]
[346432122,1734975040950,-8768.28,0.00017831,2]
[346432123,1734975040959,-13554.13,0.00017831,2]
[346432124,1734975040969,-11556.38,0.00017831,2]
[346432125,1734975040978,-6307.38,0.00017831,2]
[346432126,1734975040987,-11920.59,0.00017831,2]
[346432127,1734975040996,-3804.8,0.00017831,2]
[346432128,1734975041005,-36949.45,0.00017831,2]
[346432129,1734975041014,-2095.25,0.00017831,2]
[346432130,1734975041024,-4736.63,0.00017831,2]
[346432131,1734975041033,-3127.79,0.00017831,2]
[346432132,1734975041043,-1617.4,0.00017832,2]
[346432133,1734975041052,-500.0,0.00017832,2]
[346432134,1734975041061,-500.0,0.00017832,2]
[346432135,1734975041071,-966.07,0.00017832,2]
[346432136,1734975041320,-1771.21,0.00017832,2]
[346432137,1734975041330,-677.59,0.00017832,2]
[346432138,1734975041344,-594.84,0.00017832,2]
[346432139,1734975041355,-500.0,0.00017832,2]
[346432140,1734975041365,-2996.02,0.00017832,2]
[346432141,1734975041375,-500.0,0.00017832,2]
[346432142,1734975041386,-155.940262,0.00017832,2]
[346432143,1734975041396,-3755.795061,0.00017832,2]
[346432144,1734975041407,-1035.57,0.00017832,2]
[346432145,1734975041417,-4389.613418,0.00017832,2]
[346432146,1734975041426,-529.19349607,0.00017832,2]
[346432147,1734975041436,-500.0,0.00017832,2]
[346432148,1734975041446,-500.0,0.00017832,2]
[346432149,1734975041456,-580.85,0.00017832,2]
[346432150,1734975041466,-576.7,0.00017832,2]
[346432151,1734975041475,-647.13,0.00017832,2]
[346432152,1734975041485,-500.0,0.00017832,2]
[346432153,1734975041495,-500.0,0.00017832,2]
[346432154,1734975041505,-1794.12,0.00017832,2]
[346432155,1734975041515,-3037.64,0.00017832,2]
[346432156,1734975041524,-874.62,0.00017832,2]
[346432157,1734975041534,-1539.34,0.00017832,2]
[346432158,1734975041543,-1615.62,0.00017832,2]
[346432159,1734975041553,-790.71,0.00017832,2]
[346432160,1734975041562,-1017.14,0.00017832,2]
[346432161,1734975041572,-14269.0,0.00017832,2]
[346432162,1734975041581,-579.61608306,0.00017832,2]
[346432163,1734975041594,-1666.85,0.00017832,2]
[346432164,1734975041604,-4687.6,0.00017832,2]
[346432165,1734975041614,-1821.66,0.00017832,2]
[346432166,1734975041624,-19255.98,0.00017832,2]
[346432167,1734975041634,-1711.58,0.00017832,2]
[346432168,1734975041644,-841.96,0.00017832,2]
[346432169,1734975041653,-4924.16,0.00017832,2]
[346432170,1734975041663,-2642.82,0.00017832,2]
[346432171,1734975041673,-8850.24,0.00017832,2]
[346432172,1734975041683,-1761.63,0.00017832,2]
[346432173,1734975041693,-9682.19,0.00017832,2]
[346432174,1734975041703,-1274.09,0.00017832,2]
[346432175,1734975041713,-32405.6,0.00017832,2]
[346432176,1734975041723,-3347.69,0.00017832,2]
[346432177,1734975041732,-5982.86,0.00017832,2]
[346432178,1734975041742,-1061.53,0.00017832,2]
[346432179,1734975041752,-3039.35,0.00017832,2]
[346432180,1734975041762,-3243.91,0.00017832,2]
[346432181,1734975041772,-777.48,0.00017832,2]
[346432182,1734975041784,-7478.95,0.00017832,2]
[346432183,1734975041794,-5958.09,0.00017832,2]
[346432184,1734975041805,-4571.85,0.00017832,2]
[346432185,1734975041815,-805.04,0.00017832,2]
[346432186,1734975041827,-10109.9,0.00017832,2]
[346432187,1734975041842,-744.4,0.00017832,2]
[346432188,1734975041851,-20167.63,0.00017832,2]
[346432189,1734975041860,-500.0,0.00017832,2]
[346432190,1734975041870,-694.87,0.00017832,2]
[346432191,1734975041880,-5645.61,0.00017832,2]
[346432192,1734975041889,-28014.01,0.00017832,2]
[346432193,1734975041900,-500.0,0.00017832,2]
[346432194,1734975041910,-4365.25,0.00017832,2]
[346432195,1734975041921,-769.33,0.00017832,2]
[346432196,1734975041930,-3171.39,0.00017832,2]
[346432197,1734975041940,-500.0,0.00017832,2]
[346432198,1734975041950,-3227.77,0.00017832,2]
[346432199,1734975041959,-1748.0,0.00017832,2]
[346432200,1734975041969,-5680.52,0.00017832,2]
[346432201,1734975041979,-151.0,0.00017832,2]
[346432202,1734975041988,-5344.19,0.00017832,2]
[346432203,1734975041997,-151.0,0.00017832,2]
[346432204,1734975042008,-4848.65,0.00017832,2]
[346432205,1734975042017,-5031.48,0.00017832,2]
[346432206,1734975042027,-191.488556,0.00017832,2]
[346432207,1734975042037,-1722.8,0.00017832,2]
[346432208,1734975042046,-191.488556,0.00017832,2]
[346432209,1734975042056,-7265.86,0.00017832,2]
[346432210,1734975042065,-7167.91,0.00017832,2]